[Event "Early-Titled-Tuesday-Blitz-January-16-2024"]
[Site "Chess.com"]
[Date "2024.01.16"]
[Round "11"]
[White "Polish_fighter3000"]
[Black "PLAYER_2006_M"]
[Result "1-0"]
[WhiteElo "3094"]
[BlackElo "2925"]
[TimeControl "180+1"]
[EndTime "10:06:07 PST"]
[Termination "Polish_fighter3000 won by resignation"]

1. e4 {[%clk 0:03:00.9]} 1... e5 {[%clk 0:03:00.3]} 2. Nf3 {[%clk 0:03:01]} 2...
Nf6 {[%clk 0:03:00.8]} 3. Nxe5 {[%clk 0:02:56]} 3... d6 {[%clk 0:03:01]} 4. Nf3
{[%clk 0:02:56.6]} 4... Nxe4 {[%clk 0:03:01.6]} 5. Nc3 {[%clk 0:02:57.3]} 5...
Nxc3 {[%clk 0:03:01.6]} 6. dxc3 {[%clk 0:02:58.2]} 6... Be7 {[%clk 0:03:02.1]}
7. Be3 {[%clk 0:02:58.5]} 7... O-O {[%clk 0:03:02.5]} 8. Qd2 {[%clk 0:02:59.2]}
8... Nd7 {[%clk 0:03:02.8]} 9. O-O-O {[%clk 0:02:59.8]} 9... Nf6 {[%clk
0:03:02.8]} 10. Kb1 {[%clk 0:02:58.7]} 10... c5 {[%clk 0:02:55.3]} 11. Bd3
{[%clk 0:02:35.6]} 11... Be6 {[%clk 0:02:45.8]} 12. Rhe1 {[%clk 0:02:26.9]}
12... Qa5 {[%clk 0:02:40.2]} 13. a3 {[%clk 0:02:26.8]} 13... Rfe8 {[%clk
0:02:25.2]} 14. Ng5 {[%clk 0:02:21.7]} 14... Bf8 {[%clk 0:01:56.1]} 15. Nxe6
{[%clk 0:02:16.3]} 15... Rxe6 {[%clk 0:01:55.2]} 16. Bg5 {[%clk 0:02:09.3]}
16... Rae8 {[%clk 0:01:51.6]} 17. Bxf6 {[%clk 0:02:07.8]} 17... gxf6 {[%clk
0:01:46.5]} 18. Bc4 {[%clk 0:02:05.8]} 18... Bh6 {[%clk 0:01:18.9]} 19. Rxe6
{[%clk 0:02:03.5]} 19... Bxd2 {[%clk 0:01:12.4]} 20. Rxe8+ {[%clk 0:02:02.9]}
20... Kg7 {[%clk 0:01:13.1]} 21. Rxd2 {[%clk 0:02:02.8]} 21... Qa4 {[%clk
0:01:13.6]} 22. Re4 {[%clk 0:02:03.3]} 1-0

[Event "Early-Titled-Tuesday-Blitz-January-16-2024"]
[Site "Chess.com"]
[Date "2024.01.16"]
[Round "11"]
[White "JimDiGrease"]
[Black "BardArtem"]
[Result "1-0"]
[WhiteElo "2983"]
[BlackElo "2812"]
[TimeControl "180+1"]
[EndTime "10:06:57 PST"]
[Termination "JimDiGrease won by resignation"]

1. d4 {[%clk 0:03:00.9]} 1... d5 {[%clk 0:02:54.2]} 2. c4 {[%clk 0:03:01.3]}
2... dxc4 {[%clk 0:02:52.9]} 3. Nf3 {[%clk 0:02:58.2]} 3... Nf6 {[%clk
0:02:51.7]} 4. e3 {[%clk 0:02:57.5]} 4... e6 {[%clk 0:02:52]} 5. Bxc4 {[%clk
0:02:57.8]} 5... c5 {[%clk 0:02:52.3]} 6. O-O {[%clk 0:02:57.9]} 6... Nc6 {[%clk
0:02:52.3]} 7. Qe2 {[%clk 0:02:56.1]} 7... cxd4 {[%clk 0:02:51.7]} 8. Rd1 {[%clk
0:02:55.8]} 8... Be7 {[%clk 0:02:51.6]} 9. exd4 {[%clk 0:02:55.7]} 9... O-O
{[%clk 0:02:50.7]} 10. Nc3 {[%clk 0:02:56.2]} 10... h6 {[%clk 0:02:42.3]} 11. d5
{[%clk 0:02:38.7]} 11... exd5 {[%clk 0:02:33.7]} 12. Nxd5 {[%clk 0:02:39.6]}
12... Nxd5 {[%clk 0:02:33.2]} 13. Bxd5 {[%clk 0:02:40.5]} 13... Qc7 {[%clk
0:02:24.8]} 14. Qc4 {[%clk 0:02:40.8]} 14... Bf6 {[%clk 0:02:12.4]} 15. Bf4
{[%clk 0:02:37.8]} 15... Qb6 {[%clk 0:01:53.1]} 16. Bd6 {[%clk 0:02:37.3]} 16...
Rd8 {[%clk 0:01:39.2]} 17. Bxf7+ {[%clk 0:02:34.7]} 17... Kh8 {[%clk 0:01:39.3]}
18. Bg6 {[%clk 0:02:08.1]} 18... Bd7 {[%clk 0:01:15.1]} 19. Bc2 {[%clk
0:01:57.6]} 19... Ne7 {[%clk 0:00:16]} 20. Bxe7 {[%clk 0:01:52.3]} 20... Bxe7
{[%clk 0:00:16.9]} 21. Qe4 {[%clk 0:01:52.4]} 1-0

[Event "Early-Titled-Tuesday-Blitz-January-16-2024"]
[Site "Chess.com"]
[Date "2024.01.16"]
[Round "11"]
[White "Witik"]
[Black "djano"]
[Result "1-0"]
[WhiteElo "2762"]
[BlackElo "2635"]
[TimeControl "180+1"]
[EndTime "10:07:13 PST"]
[Termination "Witik won by resignation"]

1. d4 {[%clk 0:02:59.6]} 1... d5 {[%clk 0:03:00.4]} 2. c4 {[%clk 0:02:59.4]}
2... e6 {[%clk 0:03:00.4]} 3. Nc3 {[%clk 0:02:59.7]} 3... c5 {[%clk 0:03:00.5]}
4. e3 {[%clk 0:02:59.5]} 4... Nf6 {[%clk 0:03:00]} 5. Nf3 {[%clk 0:02:59.6]}
5... Nc6 {[%clk 0:02:59.9]} 6. a3 {[%clk 0:02:59.1]} 6... a6 {[%clk 0:02:56.8]}
7. dxc5 {[%clk 0:02:56.6]} 7... Bxc5 {[%clk 0:02:57.7]} 8. b4 {[%clk 0:02:56.6]}
8... Bd6 {[%clk 0:02:55.3]} 9. Bb2 {[%clk 0:02:56.5]} 9... O-O {[%clk
0:02:54.3]} 10. Qc2 {[%clk 0:02:56.5]} 10... Re8 {[%clk 0:02:45.5]} 11. Rd1
{[%clk 0:02:55.4]} 11... dxc4 {[%clk 0:02:40.7]} 12. Ng5 {[%clk 0:02:49.1]}
12... Ne5 {[%clk 0:02:29.4]} 13. Nce4 {[%clk 0:02:40.1]} 13... Nxe4 {[%clk
0:01:55.9]} 14. Nxe4 {[%clk 0:02:37.1]} 14... Nd3+ {[%clk 0:01:20.3]} 15. Bxd3
{[%clk 0:02:34.3]} 15... cxd3 {[%clk 0:01:20.9]} 16. Qxd3 {[%clk 0:02:14.2]}
16... Bxb4+ {[%clk 0:00:23.3]} 17. axb4 {[%clk 0:02:14]} 17... Qe7 {[%clk
0:00:24.2]} 18. Qd6 {[%clk 0:01:53.6]} 18... Qh4 {[%clk 0:00:22.4]} 19. Qg3
{[%clk 0:01:43.2]} 19... Qh6 {[%clk 0:00:19.8]} 20. Nf6+ {[%clk 0:01:38.4]} 1-0

[Event "Early-Titled-Tuesday-Blitz-January-16-2024"]
[Site "Chess.com"]
[Date "2024.01.16"]
[Round "11"]
[White "shimastream"]
[Black "chenxiaoyuer"]
[Result "1-0"]
[WhiteElo "3018"]
[BlackElo "2765"]
[TimeControl "180+1"]
[EndTime "10:07:17 PST"]
[Termination "shimastream won by checkmate"]

1. e4 {[%clk 0:02:48.3]} 1... c5 {[%clk 0:02:53.9]} 2. Nf3 {[%clk 0:02:45.4]}
2... d6 {[%clk 0:02:54.2]} 3. Nc3 {[%clk 0:02:43.7]} 3... Nf6 {[%clk 0:02:52.9]}
4. e5 {[%clk 0:02:41]} 4... dxe5 {[%clk 0:02:52.8]} 5. Nxe5 {[%clk 0:02:41.9]}
5... a6 {[%clk 0:02:53.2]} 6. Be2 {[%clk 0:02:32.3]} 6... Nbd7 {[%clk
0:02:41.8]} 7. d4 {[%clk 0:02:28.8]} 7... cxd4 {[%clk 0:02:15.9]} 8. Qxd4 {[%clk
0:02:29.7]} 8... g6 {[%clk 0:02:05]} 9. Ng4 {[%clk 0:02:13.8]} 9... Bg7 {[%clk
0:01:58]} 10. Bh6 {[%clk 0:02:13.1]} 10... O-O {[%clk 0:01:45.2]} 11. O-O-O
{[%clk 0:02:07.9]} 11... e5 {[%clk 0:01:33.3]} 12. Qd2 {[%clk 0:02:05.8]} 12...
Qa5 {[%clk 0:01:24.5]} 13. Bxg7 {[%clk 0:02:01.3]} 13... Kxg7 {[%clk 0:01:21.6]}
14. Qh6+ {[%clk 0:02:01.5]} 14... Kg8 {[%clk 0:01:21.7]} 15. Rxd7 {[%clk
0:01:50.2]} 15... Nxd7 {[%clk 0:01:19.5]} 16. Ne4 {[%clk 0:01:47.7]} 16... f6
{[%clk 0:01:00.1]} 17. Bc4+ {[%clk 0:01:46.4]} 17... Kh8 {[%clk 0:00:57.6]} 18.
Ngxf6 {[%clk 0:01:14.7]} 18... Rxf6 {[%clk 0:00:44.6]} 19. Nxf6 {[%clk
0:01:12.8]} 19... Nxf6 {[%clk 0:00:40.2]} 20. Qf8+ {[%clk 0:01:11.4]} 20... Ng8
{[%clk 0:00:41.1]} 21. Qxg8# {[%clk 0:01:01.7]} 1-0

[Event "Early-Titled-Tuesday-Blitz-January-16-2024"]
[Site "Chess.com"]
[Date "2024.01.16"]
[Round "11"]
[White "publicaccountcze"]
[Black "m_ezat"]
[Result "0-1"]
[WhiteElo "2319"]
[BlackElo "2454"]
[TimeControl "180+1"]
[EndTime "10:07:22 PST"]
[Termination "m_ezat won by resignation"]

1. e4 {[%clk 0:02:51.9]} 1... e5 {[%clk 0:02:57.1]} 2. Nf3 {[%clk 0:02:51.3]}
2... Nf6 {[%clk 0:02:51.8]} 3. Nxe5 {[%clk 0:02:50.9]} 3... d6 {[%clk
0:02:50.3]} 4. Nf3 {[%clk 0:02:51.4]} 4... Nxe4 {[%clk 0:02:50.1]} 5. Nc3 {[%clk
0:02:52.1]} 5... Nxc3 {[%clk 0:02:47.2]} 6. dxc3 {[%clk 0:02:53]} 6... d5 {[%clk
0:02:47.5]} 7. Be3 {[%clk 0:02:48.4]} 7... c6 {[%clk 0:02:47.1]} 8. Qd2 {[%clk
0:02:47.7]} 8... Qa5 {[%clk 0:02:45.1]} 9. Bd3 {[%clk 0:02:37.4]} 9... Bd6
{[%clk 0:02:40.1]} 10. Nd4 {[%clk 0:02:24.5]} 10... Nd7 {[%clk 0:02:31.2]} 11.
Nf5 {[%clk 0:02:20.5]} 11... Bf8 {[%clk 0:02:31.1]} 12. Bd4 {[%clk 0:02:04.2]}
12... Nc5 {[%clk 0:02:25.5]} 13. Nxg7+ {[%clk 0:01:59.3]} 13... Bxg7 {[%clk
0:02:23.8]} 14. Bxg7 {[%clk 0:01:59.2]} 14... Rg8 {[%clk 0:02:24.1]} 15. Qe3+
{[%clk 0:01:45]} 15... Be6 {[%clk 0:02:21]} 16. Bd4 {[%clk 0:01:33.2]} 16...
Nxd3+ {[%clk 0:02:20.4]} 17. cxd3 {[%clk 0:01:22.5]} 17... Rxg2 {[%clk
0:02:08.4]} 18. Bf6 {[%clk 0:01:21.6]} 18... Kd7 {[%clk 0:02:00]} 19. d4 {[%clk
0:00:45.6]} 19... Re8 {[%clk 0:01:57.8]} 20. Kd2 {[%clk 0:00:42.8]} 20... Bg4
{[%clk 0:01:54.3]} 21. Be5 {[%clk 0:00:23]} 21... Qb5 {[%clk 0:01:51.2]} 22. Qd3
{[%clk 0:00:15.3]} 22... Rxf2+ {[%clk 0:01:49.3]} 23. Ke3 {[%clk 0:00:09.6]}
23... Rf3+ {[%clk 0:01:49.3]} 24. Ke2 {[%clk 0:00:07.9]} 24... Qxd3+ {[%clk
0:01:49.2]} 25. Ke1 {[%clk 0:00:08]} 25... Re3+ {[%clk 0:01:49.3]} 26. Kf2
{[%clk 0:00:05.9]} 26... Re2+ {[%clk 0:01:49.5]} 0-1

[Event "Early-Titled-Tuesday-Blitz-January-16-2024"]
[Site "Chess.com"]
[Date "2024.01.16"]
[Round "11"]
[White "Firouzja2003"]
[Black "MITerryble"]
[Result "1-0"]
[WhiteElo "3166"]
[BlackElo "3025"]
[TimeControl "180+1"]
[EndTime "10:07:24 PST"]
[Termination "Firouzja2003 won on time"]

1. e4 {[%clk 0:03:00.9]} 1... e6 {[%clk 0:03:00.3]} 2. d4 {[%clk 0:03:00.7]}
2... d5 {[%clk 0:03:00.8]} 3. exd5 {[%clk 0:03:01.3]} 3... exd5 {[%clk
0:03:01.2]} 4. Nf3 {[%clk 0:03:02.2]} 4... Nc6 {[%clk 0:03:00.9]} 5. Bd3 {[%clk
0:03:03.1]} 5... Nb4 {[%clk 0:03:00]} 6. Be2 {[%clk 0:03:02]} 6... Bf5 {[%clk
0:02:59.6]} 7. Na3 {[%clk 0:03:01.9]} 7... Nc6 {[%clk 0:03:00.1]} 8. O-O {[%clk
0:02:53.9]} 8... Bxa3 {[%clk 0:02:58.4]} 9. bxa3 {[%clk 0:02:54.8]} 9... Nge7
{[%clk 0:02:58.8]} 10. Rb1 {[%clk 0:02:55.5]} 10... b6 {[%clk 0:02:57.4]} 11.
Nh4 {[%clk 0:02:56.1]} 11... O-O {[%clk 0:02:50.9]} 12. Nxf5 {[%clk 0:02:53.7]}
12... Nxf5 {[%clk 0:02:51.8]} 13. c3 {[%clk 0:02:50.5]} 13... Qf6 {[%clk
0:02:43.2]} 14. Bd3 {[%clk 0:02:50.3]} 14... Nfe7 {[%clk 0:02:14.8]} 15. f4
{[%clk 0:02:46]} 15... Nf5 {[%clk 0:01:52.7]} 16. g4 {[%clk 0:02:45.1]} 16...
Nd6 {[%clk 0:01:49.4]} 17. g5 {[%clk 0:02:45.7]} 17... Qd8 {[%clk 0:01:44.6]}
18. f5 {[%clk 0:02:40.4]} 18... Ne4 {[%clk 0:01:40.3]} 19. f6 {[%clk 0:02:40.7]}
19... g6 {[%clk 0:01:33.5]} 20. Qf3 {[%clk 0:02:34.7]} 20... Re8 {[%clk
0:01:27.5]} 21. Qh3 {[%clk 0:02:32.1]} 21... h5 {[%clk 0:01:27.6]} 22. Bf4
{[%clk 0:02:27.1]} 22... Na5 {[%clk 0:01:00.8]} 23. Rbe1 {[%clk 0:02:25.4]}
23... c5 {[%clk 0:00:59.5]} 24. Be5 {[%clk 0:02:22.9]} 24... Qc8 {[%clk
0:00:49.5]} 25. Qxc8 {[%clk 0:02:20]} 25... Raxc8 {[%clk 0:00:50.4]} 26. Bxe4
{[%clk 0:02:19.4]} 26... dxe4 {[%clk 0:00:50.3]} 27. Rxe4 {[%clk 0:02:20.3]}
27... Nc4 {[%clk 0:00:49.5]} 28. Rfe1 {[%clk 0:02:20.1]} 28... cxd4 {[%clk
0:00:18.3]} 29. cxd4 {[%clk 0:02:20.1]} 29... Nxa3 {[%clk 0:00:13.8]} 30. d5
{[%clk 0:02:20.6]} 30... Nc4 {[%clk 0:00:07.1]} 31. Bf4 {[%clk 0:02:21.2]} 31...
Rxe4 {[%clk 0:00:06.8]} 32. Rxe4 {[%clk 0:02:22.1]} 32... b5 {[%clk 0:00:06.9]}
33. Re7 {[%clk 0:02:19.3]} 33... Nb6 {[%clk 0:00:03.7]} 34. d6 {[%clk
0:02:18.8]} 34... Rd8 {[%clk 0:00:02.9]} 35. Kf2 {[%clk 0:02:15.5]} 35... Rd7
{[%clk 0:00:02.6]} 36. Ke3 {[%clk 0:02:13.6]} 36... a6 {[%clk 0:00:01.5]} 37.
Kd4 {[%clk 0:02:13.9]} 37... Rd8 {[%clk 0:00:01.6]} 38. Kc5 {[%clk 0:02:14.3]}
1-0

[Event "Early-Titled-Tuesday-Blitz-January-16-2024"]
[Site "Chess.com"]
[Date "2024.01.16"]
[Round "11"]
[White "JSPrepz"]
[Black "TregubovP"]
[Result "1-0"]
[WhiteElo "2875"]
[BlackElo "2678"]
[TimeControl "180+1"]
[EndTime "10:07:24 PST"]
[Termination "JSPrepz won by resignation"]

1. e4 {[%clk 0:03:00.9]} 1... c5 {[%clk 0:02:59.6]} 2. Nf3 {[%clk 0:03:01.1]}
2... e6 {[%clk 0:03:00]} 3. c3 {[%clk 0:02:59.3]} 3... d5 {[%clk 0:02:58.7]} 4.
e5 {[%clk 0:02:59.9]} 4... Nc6 {[%clk 0:02:57.4]} 5. d4 {[%clk 0:03:00.1]} 5...
Qb6 {[%clk 0:02:58]} 6. Bd3 {[%clk 0:02:57.7]} 6... cxd4 {[%clk 0:02:54.8]} 7.
O-O {[%clk 0:02:56.4]} 7... Bd7 {[%clk 0:02:51.9]} 8. Re1 {[%clk 0:02:56.9]}
8... Nge7 {[%clk 0:02:49.9]} 9. h4 {[%clk 0:02:51.6]} 9... Nf5 {[%clk
0:02:43.3]} 10. Bxf5 {[%clk 0:02:45.7]} 10... exf5 {[%clk 0:02:43.2]} 11. cxd4
{[%clk 0:02:44]} 11... Be7 {[%clk 0:02:39.3]} 12. Nc3 {[%clk 0:02:42.1]} 12...
Be6 {[%clk 0:02:39.3]} 13. h5 {[%clk 0:02:40.6]} 13... h6 {[%clk 0:02:38]} 14.
a3 {[%clk 0:02:36.6]} 14... g5 {[%clk 0:02:29.4]} 15. hxg6 {[%clk 0:02:29.8]}
15... fxg6 {[%clk 0:02:29.5]} 16. b4 {[%clk 0:02:30.6]} 16... Qd8 {[%clk
0:02:20.9]} 17. Qd3 {[%clk 0:02:10.9]} 17... g5 {[%clk 0:02:13.3]} 18. Bd2
{[%clk 0:01:57.4]} 18... Qd7 {[%clk 0:02:12.9]} 19. Rac1 {[%clk 0:01:56.5]}
19... g4 {[%clk 0:01:44.8]} 20. Nh2 {[%clk 0:01:53.4]} 20... h5 {[%clk
0:01:45.3]} 21. Ne2 {[%clk 0:01:48.6]} 21... h4 {[%clk 0:01:45]} 22. Nf4 {[%clk
0:01:48.3]} 22... Rg8 {[%clk 0:01:30.9]} 23. Nf1 {[%clk 0:01:43.7]} 23... Kf7
{[%clk 0:01:28.1]} 24. Ne3 {[%clk 0:01:42.7]} 24... Raf8 {[%clk 0:01:01.6]} 25.
Nexd5 {[%clk 0:01:35.7]} 25... Bg5 {[%clk 0:00:49.3]} 26. Nxe6 {[%clk
0:01:18.4]} 26... Qxe6 {[%clk 0:00:44.1]} 27. Bxg5 {[%clk 0:01:17.5]} 27... Qxd5
{[%clk 0:00:42]} 28. Qxf5+ {[%clk 0:01:11.7]} 1-0

[Event "Early-Titled-Tuesday-Blitz-January-16-2024"]
[Site "Chess.com"]
[Date "2024.01.16"]
[Round "11"]
[White "Durarbayli"]
[Black "brm72"]
[Result "1-0"]
[WhiteElo "2859"]
[BlackElo "2710"]
[TimeControl "180+1"]
[EndTime "10:07:38 PST"]
[Termination "Durarbayli won by resignation"]

1. e4 {[%clk 0:03:00.6]} 1... c5 {[%clk 0:03:00.3]} 2. Nf3 {[%clk 0:02:56.2]}
2... Nc6 {[%clk 0:03:00.9]} 3. d4 {[%clk 0:02:55.2]} 3... cxd4 {[%clk
0:03:01.8]} 4. Nxd4 {[%clk 0:02:55.7]} 4... Nf6 {[%clk 0:03:02.4]} 5. Nc3 {[%clk
0:02:55.9]} 5... e6 {[%clk 0:03:02.4]} 6. Nxc6 {[%clk 0:02:55.8]} 6... bxc6
{[%clk 0:03:01.9]} 7. e5 {[%clk 0:02:56.5]} 7... Nd5 {[%clk 0:03:02.6]} 8. Ne4
{[%clk 0:02:57.1]} 8... Qc7 {[%clk 0:03:01.7]} 9. f4 {[%clk 0:02:54.4]} 9... Rb8
{[%clk 0:03:01.6]} 10. a3 {[%clk 0:02:51]} 10... f5 {[%clk 0:02:27.8]} 11. Nd6+
{[%clk 0:02:48.2]} 11... Bxd6 {[%clk 0:02:21.8]} 12. exd6 {[%clk 0:02:49.1]}
12... Qb6 {[%clk 0:02:20]} 13. c4 {[%clk 0:02:40.3]} 13... Nf6 {[%clk
0:02:18.3]} 14. b4 {[%clk 0:02:38.7]} 14... c5 {[%clk 0:02:18.5]} 15. b5 {[%clk
0:02:37.4]} 15... Bb7 {[%clk 0:02:10.4]} 16. Bb2 {[%clk 0:02:30]} 16... O-O
{[%clk 0:02:08.9]} 17. a4 {[%clk 0:02:23.1]} 17... Qa5+ {[%clk 0:01:48.4]} 18.
Qd2 {[%clk 0:02:21.5]} 18... Qxd2+ {[%clk 0:01:48.2]} 19. Kxd2 {[%clk
0:02:22.4]} 19... Ne4+ {[%clk 0:01:37.2]} 20. Ke3 {[%clk 0:02:21.1]} 20... Ra8
{[%clk 0:01:31.3]} 21. Rg1 {[%clk 0:02:10.7]} 21... a6 {[%clk 0:01:25.6]} 22.
Be5 {[%clk 0:02:02.9]} 22... axb5 {[%clk 0:01:15.8]} 23. cxb5 {[%clk 0:02:02.5]}
23... Bd5 {[%clk 0:01:16]} 24. Bd3 {[%clk 0:02:01.6]} 24... Ra5 {[%clk 0:01:13]}
25. Bxe4 {[%clk 0:02:00.3]} 25... Bxe4 {[%clk 0:01:13.9]} 26. Bc3 {[%clk
0:01:59.8]} 26... Raa8 {[%clk 0:01:10.8]} 27. g3 {[%clk 0:01:55.3]} 27... Rfb8
{[%clk 0:01:08.1]} 28. Rgc1 {[%clk 0:01:54.7]} 28... c4 {[%clk 0:01:05.2]} 29.
Kd4 {[%clk 0:01:53.1]} 29... Bd5 {[%clk 0:01:03.4]} 30. Kc5 {[%clk 0:01:53.2]}
30... g6 {[%clk 0:01:00.2]} 31. Kb4 {[%clk 0:01:52.6]} 31... Kf7 {[%clk
0:00:57.1]} 32. Be5 {[%clk 0:01:50.7]} 32... h6 {[%clk 0:00:50.9]} 33. a5 {[%clk
0:01:44.5]} 33... Bc6 {[%clk 0:00:48.9]} 34. b6 {[%clk 0:01:44.4]} 34... Ra6
{[%clk 0:00:36]} 35. Rxc4 {[%clk 0:01:42.5]} 35... Rb7 {[%clk 0:00:26.6]} 36.
Rxc6 {[%clk 0:01:39.7]} 36... dxc6 {[%clk 0:00:27.5]} 37. Kc5 {[%clk 0:01:40.2]}
1-0

[Event "Early-Titled-Tuesday-Blitz-January-16-2024"]
[Site "Chess.com"]
[Date "2024.01.16"]
[Round "11"]
[White "C_K_G"]
[Black "Quattroporte300"]
[Result "1-0"]
[WhiteElo "2060"]
[BlackElo "2409"]
[TimeControl "180+1"]
[EndTime "10:07:47 PST"]
[Termination "C_K_G won by resignation"]

1. e4 {[%clk 0:03:00.9]} 1... c5 {[%clk 0:02:57.7]} 2. Nf3 {[%clk 0:02:59.4]}
2... a6 {[%clk 0:02:58.2]} 3. d4 {[%clk 0:03:00]} 3... cxd4 {[%clk 0:02:57.8]}
4. Nxd4 {[%clk 0:03:00.9]} 4... Nf6 {[%clk 0:02:58.1]} 5. Nc3 {[%clk 0:03:01.6]}
5... e5 {[%clk 0:02:57.6]} 6. Nb3 {[%clk 0:03:01.1]} 6... Bb4 {[%clk 0:02:57.8]}
7. Bd3 {[%clk 0:03:01]} 7... d5 {[%clk 0:02:55.3]} 8. exd5 {[%clk 0:02:59.5]}
8... Nxd5 {[%clk 0:02:55.9]} 9. Bd2 {[%clk 0:02:59.8]} 9... Nxc3 {[%clk
0:02:55.6]} 10. bxc3 {[%clk 0:02:55.1]} 10... Bd6 {[%clk 0:02:51.8]} 11. O-O
{[%clk 0:02:50.5]} 11... Nc6 {[%clk 0:02:51.6]} 12. Re1 {[%clk 0:02:48.4]} 12...
O-O {[%clk 0:02:50.2]} 13. Rb1 {[%clk 0:02:42.5]} 13... f5 {[%clk 0:02:48.2]}
14. Be3 {[%clk 0:02:35.8]} 14... Qh4 {[%clk 0:02:41.8]} 15. Bc5 {[%clk
0:02:29.6]} 15... Bxc5 {[%clk 0:02:27.2]} 16. Nxc5 {[%clk 0:02:29.1]} 16... e4
{[%clk 0:02:24.9]} 17. Bc4+ {[%clk 0:02:21.8]} 17... Kh8 {[%clk 0:02:25.4]} 18.
Qd6 {[%clk 0:02:20.2]} 18... Rd8 {[%clk 0:02:10.2]} 19. Qc7 {[%clk 0:02:19.2]}
19... Qe7 {[%clk 0:01:56.2]} 20. Qb6 {[%clk 0:01:51.2]} 20... Ne5 {[%clk
0:01:54]} 21. Bb3 {[%clk 0:01:43.5]} 21... Rd6 {[%clk 0:01:52.2]} 22. Qb4 {[%clk
0:01:34.3]} 22... b6 {[%clk 0:01:48.4]} 23. Na4 {[%clk 0:01:18.6]} 23... a5
{[%clk 0:01:36.4]} 24. Qa3 {[%clk 0:01:15.7]} 24... Ba6 {[%clk 0:01:27.9]} 25.
Nxb6 {[%clk 0:01:08.9]} 25... Rxb6 {[%clk 0:01:24.6]} 26. Qxe7 {[%clk
0:01:07.6]} 26... Ng6 {[%clk 0:01:00.8]} 27. Qc5 {[%clk 0:00:58.3]} 27... Rb5
{[%clk 0:00:58]} 28. Qc6 {[%clk 0:00:58.6]} 28... Rb7 {[%clk 0:00:53.2]} 29. Bd5
{[%clk 0:00:52.6]} 1-0

[Event "Early-Titled-Tuesday-Blitz-January-16-2024"]
[Site "Chess.com"]
[Date "2024.01.16"]
[Round "11"]
[White "GiorgianBarbosa"]
[Black "NewYearGirl"]
[Result "0-1"]
[WhiteElo "2575"]
[BlackElo "2394"]
[TimeControl "180+1"]
[EndTime "10:07:49 PST"]
[Termination "NewYearGirl won by resignation"]

1. e4 {[%clk 0:02:55.5]} 1... c5 {[%clk 0:03:00.2]} 2. Nf3 {[%clk 0:02:54.8]}
2... d6 {[%clk 0:03:00.8]} 3. d4 {[%clk 0:02:55.2]} 3... cxd4 {[%clk 0:03:01.7]}
4. Nxd4 {[%clk 0:02:55.6]} 4... Nf6 {[%clk 0:03:02.2]} 5. Nc3 {[%clk 0:02:56.1]}
5... g6 {[%clk 0:03:02.8]} 6. Be2 {[%clk 0:02:45.1]} 6... Bg7 {[%clk 0:03:00.9]}
7. O-O {[%clk 0:02:45.6]} 7... Nc6 {[%clk 0:02:59.5]} 8. Nb3 {[%clk 0:02:45.1]}
8... O-O {[%clk 0:02:56.5]} 9. Bg5 {[%clk 0:02:42.6]} 9... h6 {[%clk 0:02:55.6]}
10. Be3 {[%clk 0:02:33.7]} 10... b6 {[%clk 0:02:55]} 11. h3 {[%clk 0:02:28.5]}
11... Bb7 {[%clk 0:02:54.7]} 12. Qd2 {[%clk 0:02:26.6]} 12... Rc8 {[%clk
0:02:52.9]} 13. Bxh6 {[%clk 0:02:24.2]} 13... Ne5 {[%clk 0:02:48.7]} 14. Bxg7
{[%clk 0:02:22.8]} 14... Kxg7 {[%clk 0:02:49.6]} 15. Bd3 {[%clk 0:02:18.3]}
15... Rh8 {[%clk 0:02:47.3]} 16. f4 {[%clk 0:02:16.7]} 16... Nc4 {[%clk
0:02:47.1]} 17. Qc1 {[%clk 0:02:05]} 17... Qc7 {[%clk 0:02:23.3]} 18. Nb5 {[%clk
0:02:03.7]} 18... Qd7 {[%clk 0:02:22.1]} 19. Nxa7 {[%clk 0:01:59.1]} 19... Rc7
{[%clk 0:02:02.7]} 20. a4 {[%clk 0:01:57.8]} 20... Bxe4 {[%clk 0:01:47.9]} 21.
Bxe4 {[%clk 0:01:55.6]} 21... Nxe4 {[%clk 0:01:48]} 22. Nb5 {[%clk 0:01:55.6]}
22... Rcc8 {[%clk 0:01:47.8]} 23. Qe1 {[%clk 0:01:45]} 23... d5 {[%clk
0:01:42.1]} 24. Ra2 {[%clk 0:01:31.2]} 24... Rxh3 {[%clk 0:01:41.5]} 25. gxh3
{[%clk 0:01:00.4]} 25... Qxh3 {[%clk 0:01:42.4]} 26. Qe2 {[%clk 0:00:56.2]}
26... Rh8 {[%clk 0:01:30.2]} 27. Qg2 {[%clk 0:00:46.8]} 27... Qe3+ {[%clk
0:01:29.4]} 28. Rf2 {[%clk 0:00:46.7]} 28... Nxf2 {[%clk 0:01:28.7]} 29. Qxf2
{[%clk 0:00:37.2]} 29... Rh1+ {[%clk 0:01:28]} 30. Kxh1 {[%clk 0:00:37.8]} 30...
Qxf2 {[%clk 0:01:28.1]} 31. N3d4 {[%clk 0:00:23.6]} 31... Ne3 {[%clk 0:01:25.1]}
0-1

[Event "Early-Titled-Tuesday-Blitz-January-16-2024"]
[Site "Chess.com"]
[Date "2024.01.16"]
[Round "11"]
[White "alexrustemov"]
[Black "ninguno46"]
[Result "1-0"]
[WhiteElo "2829"]
[BlackElo "2547"]
[TimeControl "180+1"]
[EndTime "10:07:53 PST"]
[Termination "alexrustemov won by resignation"]

1. d4 {[%clk 0:03:00.9]} 1... f5 {[%clk 0:02:59.3]} 2. g3 {[%clk 0:03:00.1]}
2... Nf6 {[%clk 0:02:58.6]} 3. Bg2 {[%clk 0:03:00.5]} 3... g6 {[%clk 0:02:59.3]}
4. c4 {[%clk 0:03:00.3]} 4... Bg7 {[%clk 0:02:59.6]} 5. Nf3 {[%clk 0:03:00.8]}
5... O-O {[%clk 0:03:00.1]} 6. O-O {[%clk 0:03:01.3]} 6... d6 {[%clk 0:03:00.6]}
7. Nc3 {[%clk 0:03:01.6]} 7... c6 {[%clk 0:03:00.7]} 8. Qc2 {[%clk 0:03:01.3]}
8... Qe8 {[%clk 0:02:58]} 9. e4 {[%clk 0:02:59.5]} 9... e5 {[%clk 0:02:57.9]}
10. dxe5 {[%clk 0:02:45.2]} 10... dxe5 {[%clk 0:02:57.5]} 11. exf5 {[%clk
0:02:44.4]} 11... gxf5 {[%clk 0:02:50.9]} 12. Re1 {[%clk 0:02:42]} 12... e4
{[%clk 0:02:50.6]} 13. Ng5 {[%clk 0:02:36.6]} 13... Qh5 {[%clk 0:02:30.9]} 14.
Nh3 {[%clk 0:02:32.8]} 14... Ng4 {[%clk 0:02:21.9]} 15. Ne2 {[%clk 0:02:27]}
15... Qf7 {[%clk 0:02:07.6]} 16. Bd2 {[%clk 0:02:15.3]} 16... Na6 {[%clk
0:02:05.6]} 17. Nhf4 {[%clk 0:02:09.6]} 17... Ne5 {[%clk 0:01:53.2]} 18. b3
{[%clk 0:02:07.7]} 18... Re8 {[%clk 0:01:48]} 19. Bc3 {[%clk 0:02:04.8]} 19...
Nc5 {[%clk 0:01:47.1]} 20. Bxe5 {[%clk 0:01:54.7]} 20... Bxe5 {[%clk 0:01:46.4]}
21. Rad1 {[%clk 0:01:55.2]} 21... Bd7 {[%clk 0:01:40.6]} 22. f3 {[%clk
0:01:55.6]} 22... Bg7 {[%clk 0:01:26.7]} 23. fxe4 {[%clk 0:01:52.5]} 23... fxe4
{[%clk 0:01:25.4]} 24. Rf1 {[%clk 0:01:52.9]} 24... a5 {[%clk 0:01:10.4]} 25.
Nd5 {[%clk 0:01:50.6]} 25... Qg6 {[%clk 0:01:02.6]} 26. Nc7 {[%clk 0:01:49.8]}
26... Nd3 {[%clk 0:00:58.4]} 27. Nxa8 {[%clk 0:01:48.1]} 27... Rxa8 {[%clk
0:00:57.9]} 28. Nf4 {[%clk 0:01:48.1]} 28... Qd6 {[%clk 0:00:27.1]} 29. Nxd3
{[%clk 0:01:47]} 29... exd3 {[%clk 0:00:26.8]} 30. Qxd3 {[%clk 0:01:46.8]} 30...
Qc5+ {[%clk 0:00:24.7]} 31. Kh1 {[%clk 0:01:45.9]} 31... Bg4 {[%clk 0:00:21.8]}
32. Rde1 {[%clk 0:01:42.7]} 32... h6 {[%clk 0:00:16.1]} 33. Qe4 {[%clk
0:01:36.3]} 33... Bh5 {[%clk 0:00:13.1]} 34. Rf5 {[%clk 0:01:30.6]} 1-0